[Event "Titled Tuesday Blitz November 01 Early 2022"]
[White "Alexikov, Alexander"]
[Black "Tharushi, T H D Niklesha"]
[WhiteFideId "14103958"]
[BlackFideId "9918264"]
[WhiteElo "2222"]
[BlackElo "1596"]
[Result "1-0"]
[Round "11"]
[TimeControl "180+1"]
[Date "2022.11.02"]
[WhiteClock "0:00:10"]
[BlackClock "0:00:30"]

1. e4 {[%clk 0:03:00]}  c6 {[%clk 0:02:58]} 2. d4 {[%clk 0:02:59]}  d5 {[%clk 0:02:58]} 3. e5 {[%clk 0:02:59]}  Bf5 {[%clk 0:02:57]} 4. h4 {[%clk 0:02:59]}  h5 {[%clk 0:02:55]} 5. Ne2 {[%clk 0:02:56]}  Nh6 {[%clk 0:02:55]} 6. Ng3 {[%clk 0:02:54]}  Bg4 {[%clk 0:02:44]} 7. f3 {[%clk 0:02:52]}  Be6 {[%clk 0:02:44]} 8. Nxh5 {[%clk 0:02:41]}  Nf5 {[%clk 0:02:43]} 9. Nf4 {[%clk 0:02:40]}  Nxh4 {[%clk 0:02:39]} 10. Kf2 {[%clk 0:02:36]}  Bf5 {[%clk 0:02:23]} 11. g4 {[%clk 0:02:14]}  Bg6 {[%clk 0:02:16]} 12. e6 {[%clk 0:02:09]}  fxe6 {[%clk 0:02:10]} 13. Kg3 {[%clk 0:02:03]}  Nf5+ {[%clk 0:02:04]} 14. gxf5 {[%clk 0:02:02]}  Rxh1 {[%clk 0:02:04]} 15. Nxg6 {[%clk 0:01:47]}  exf5 {[%clk 0:02:03]} 16. Bg5 {[%clk 0:01:20]}  Qd6+ {[%clk 0:01:56]} 17. Ne5 {[%clk 0:01:18]}  Nd7 {[%clk 0:01:55]} 18. f4 {[%clk 0:01:16]}  Nxe5 {[%clk 0:01:54]} 19. dxe5 {[%clk 0:01:14]}  Qb4 {[%clk 0:01:45]} 20. Nd2 {[%clk 0:01:07]}  e6 {[%clk 0:01:43]} 21. Nf3 {[%clk 0:01:01]}  Be7 {[%clk 0:01:30]} 22. b3 {[%clk 0:00:47]}  Bxg5 {[%clk 0:01:28]} 23. Nxg5 {[%clk 0:00:47]}  Qc5 {[%clk 0:01:23]} 24. Nf3 {[%clk 0:00:46]}  Qe3 {[%clk 0:01:21]} 25. Qd2 {[%clk 0:00:42]}  Qxd2 {[%clk 0:00:46]} 26. Nxd2 {[%clk 0:00:41]}  O-O-O {[%clk 0:00:46]} 27. Nf3 {[%clk 0:00:39]}  Rdh8 {[%clk 0:00:45]} 28. Re1 {[%clk 0:00:35]}  R8h6 {[%clk 0:00:41]} 29. c4 {[%clk 0:00:32]}  Kd7 {[%clk 0:00:34]} 30. cxd5 {[%clk 0:00:31]}  cxd5 {[%clk 0:00:35]} 31. Bb5+ {[%clk 0:00:29]}  Ke7 {[%clk 0:00:35]} 32. Re2 {[%clk 0:00:26]}  R6h3+ {[%clk 0:00:32]} 33. Kg2 {[%clk 0:00:25]}  a6 {[%clk 0:00:21]} 34. Bd3 {[%clk 0:00:25]}  Rh6 {[%clk 0:00:19]} 35. Rd2 {[%clk 0:00:24]}  Ra1 {[%clk 0:00:18]} 36. Be2 {[%clk 0:00:23]}  Rah1 {[%clk 0:00:18]} 37. Kf2 {[%clk 0:00:22]}  R1h3 {[%clk 0:00:19]} 38. Ke3 {[%clk 0:00:22]}  b5 {[%clk 0:00:19]} 39. Rc2 {[%clk 0:00:22]}  Kd7 {[%clk 0:00:20]} 40. a4 {[%clk 0:00:20]}  Rh2 {[%clk 0:00:21]} 41. Nxh2 {[%clk 0:00:17]}  Rxh2 {[%clk 0:00:21]} 42. Bxb5+ {[%clk 0:00:17]}  axb5 {[%clk 0:00:21]} 43. Rxh2 {[%clk 0:00:16]}  Kc6 {[%clk 0:00:22]} 44. Rg2 {[%clk 0:00:16]}  bxa4 {[%clk 0:00:21]} 45. bxa4 {[%clk 0:00:16]}  Kc5 {[%clk 0:00:22]} 46. Rxg7 {[%clk 0:00:15]}  d4+ {[%clk 0:00:22]} 47. Kd3 {[%clk 0:00:14]}  Kd5 {[%clk 0:00:23]} 48. Re7 {[%clk 0:00:14]}  Kc6 {[%clk 0:00:24]} 49. Rxe6+ {[%clk 0:00:14]}  Kc5 {[%clk 0:00:24]} 50. Rf6 {[%clk 0:00:14]}  Kb4 {[%clk 0:00:25]} 51. Kxd4 {[%clk 0:00:14]}  Ka3 {[%clk 0:00:26]} 52. Rxf5 {[%clk 0:00:14]}  Ka2 {[%clk 0:00:27]} 53. Kc3 {[%clk 0:00:14]}  Ka1 {[%clk 0:00:27]} 54. e6 {[%clk 0:00:14]}  Ka2 {[%clk 0:00:28]} 55. e7 {[%clk 0:00:14]}  Ka3 {[%clk 0:00:29]} 56. e8=Q {[%clk 0:00:11]}  Ka2 {[%clk 0:00:29]} 57. Qb5 {[%clk 0:00:11]}  Ka3 {[%clk 0:00:30]} 58. Qb3# {[%clk 0:00:10]} 1-0


[Site "https://www.chess.com"]

[Event "Titled Tuesday Blitz November 01 Early 2022"]
[White "Averjanov, Alexey"]
[Black "Goriatchkin, Jouri"]
[WhiteFideId "14109867"]
[BlackFideId "4120183"]
[WhiteElo "2681"]
[BlackElo "1875"]
[Result "0-1"]
[Round "11"]
[TimeControl "180+1"]
[Date "2022.11.02"]
[WhiteClock "0:02:32"]
[BlackClock "0:01:01"]

1. d4 {[%clk 0:02:52]}  d5 {[%clk 0:02:59]} 2. c4 {[%clk 0:02:52]}  dxc4 {[%clk 0:02:59]} 3. e3 {[%clk 0:02:52]}  Nf6 {[%clk 0:02:57]} 4. Bxc4 {[%clk 0:02:52]}  e6 {[%clk 0:02:58]} 5. Nf3 {[%clk 0:02:52]}  c5 {[%clk 0:02:59]} 6. O-O {[%clk 0:02:52]}  a6 {[%clk 0:02:57]} 7. b3 {[%clk 0:02:51]}  Nc6 {[%clk 0:02:57]} 8. Bb2 {[%clk 0:02:50]}  Be7 {[%clk 0:02:54]} 9. Nbd2 {[%clk 0:02:48]}  b6 {[%clk 0:02:55]} 10. Rc1 {[%clk 0:02:47]}  Bb7 {[%clk 0:02:55]} 11. Qe2 {[%clk 0:02:47]}  O-O {[%clk 0:02:55]} 12. Rfd1 {[%clk 0:02:47]}  cxd4 {[%clk 0:02:54]} 13. Nxd4 {[%clk 0:02:47]}  Nxd4 {[%clk 0:02:54]} 14. Bxd4 {[%clk 0:02:48]}  Ba3 {[%clk 0:02:43]} 15. Rb1 {[%clk 0:02:46]}  b5 {[%clk 0:02:43]} 16. Bd3 {[%clk 0:02:46]}  Qe7 {[%clk 0:02:42]} 17. Nf3 {[%clk 0:02:45]}  Rac8 {[%clk 0:02:40]} 18. Bb2 {[%clk 0:02:44]}  Bxb2 {[%clk 0:02:40]} 19. Rxb2 {[%clk 0:02:45]}  Rfd8 {[%clk 0:02:40]} 20. h3 {[%clk 0:02:45]}  Be4 {[%clk 0:02:39]} 21. Bxe4 {[%clk 0:02:44]}  Nxe4 {[%clk 0:02:40]} 22. Rxd8+ {[%clk 0:02:42]}  Rxd8 {[%clk 0:02:40]} 23. Nd2 {[%clk 0:02:43]}  Nc3 {[%clk 0:01:35]} 24. Qf3 {[%clk 0:02:37]}  h6 {[%clk 0:01:22]} 25. Ne4 {[%clk 0:02:37]}  Nxe4 {[%clk 0:01:03]} 26. Qxe4 {[%clk 0:02:38]}  Qc7 {[%clk 0:01:03]} 27. g3 {[%clk 0:02:33]}  Qc1+ {[%clk 0:01:01]} 28. Kg2 {[%clk 0:02:32]}  Qxb2 {[%clk 0:01:01]} 0-1


[Site "https://www.chess.com"]

[Event "Titled Tuesday Blitz November 01 Early 2022"]
[White "Blokhin, Sofia"]
[Black "Manon-og, Ramon Jr."]
[WhiteFideId "4508190"]
[BlackFideId "5200776"]
[WhiteElo "2005"]
[BlackElo "2271"]
[Result "0-1"]
[Round "11"]
[TimeControl "180+1"]
[Date "2022.11.02"]
[WhiteClock "0:00:04"]
[BlackClock "0:01:12"]

1. e4 {[%clk 0:03:00]}  c5 {[%clk 0:03:00]} 2. Nf3 {[%clk 0:03:00]}  d6 {[%clk 0:03:00]} 3. d4 {[%clk 0:03:00]}  cxd4 {[%clk 0:03:01]} 4. Nxd4 {[%clk 0:03:00]}  Nf6 {[%clk 0:03:01]} 5. Nc3 {[%clk 0:03:00]}  a6 {[%clk 0:03:02]} 6. Be3 {[%clk 0:02:58]}  e5 {[%clk 0:03:02]} 7. Nb3 {[%clk 0:02:57]}  Be7 {[%clk 0:03:02]} 8. f3 {[%clk 0:02:58]}  O-O {[%clk 0:03:02]} 9. Qd2 {[%clk 0:02:58]}  Be6 {[%clk 0:03:03]} 10. O-O-O {[%clk 0:02:58]}  Nbd7 {[%clk 0:03:04]} 11. g4 {[%clk 0:02:58]}  b5 {[%clk 0:03:04]} 12. h4 {[%clk 0:02:57]}  b4 {[%clk 0:03:03]} 13. Nd5 {[%clk 0:02:53]}  Bxd5 {[%clk 0:03:03]} 14. exd5 {[%clk 0:02:54]}  Nb6 {[%clk 0:03:03]} 15. Bxb6 {[%clk 0:02:49]}  Qxb6 {[%clk 0:03:04]} 16. h5 {[%clk 0:02:46]}  h6 {[%clk 0:03:04]} 17. Kb1 {[%clk 0:02:44]}  a5 {[%clk 0:03:02]} 18. g5 {[%clk 0:02:42]}  hxg5 {[%clk 0:03:02]} 19. Qxg5 {[%clk 0:02:19]}  Nxd5 {[%clk 0:03:02]} 20. Qd2 {[%clk 0:02:01]}  Ne3 {[%clk 0:02:52]} 21. h6 {[%clk 0:01:43]}  g6 {[%clk 0:02:52]} 22. Re1 {[%clk 0:01:29]}  Nxf1 {[%clk 0:02:47]} 23. Rexf1 {[%clk 0:01:25]}  a4 {[%clk 0:02:47]} 24. Nc1 {[%clk 0:01:24]}  Bf6 {[%clk 0:02:45]} 25. Qd3 {[%clk 0:01:04]}  Kh7 {[%clk 0:02:34]} 26. Qe4 {[%clk 0:00:57]}  Qd4 {[%clk 0:02:32]} 27. Qxd4 {[%clk 0:00:53]}  exd4 {[%clk 0:02:33]} 28. f4 {[%clk 0:00:53]}  a3 {[%clk 0:02:28]} 29. b3 {[%clk 0:00:49]}  Rfe8 {[%clk 0:02:22]} 30. Nd3 {[%clk 0:00:47]}  Rab8 {[%clk 0:02:22]} 31. Re1 {[%clk 0:00:45]}  Re3 {[%clk 0:02:21]} 32. Rxe3 {[%clk 0:00:38]}  dxe3 {[%clk 0:02:22]} 33. Re1 {[%clk 0:00:31]}  Bd4 {[%clk 0:02:20]} 34. c3 {[%clk 0:00:29]}  bxc3 {[%clk 0:02:19]} 35. Kc2 {[%clk 0:00:29]}  Kxh6 {[%clk 0:02:17]} 36. Rh1+ {[%clk 0:00:26]}  Kg7 {[%clk 0:02:17]} 37. Rh4 {[%clk 0:00:25]}  e2 {[%clk 0:02:01]} 38. Rh2 {[%clk 0:00:16]}  Re8 {[%clk 0:01:58]} 39. Ne1 {[%clk 0:00:16]}  Kf6 {[%clk 0:01:39]} 40. Kd3 {[%clk 0:00:16]}  Bc5 {[%clk 0:01:29]} 41. Rxe2 {[%clk 0:00:16]}  Rxe2 {[%clk 0:01:27]} 42. Kxe2 {[%clk 0:00:17]}  Kf5 {[%clk 0:01:28]} 43. Nd3 {[%clk 0:00:15]}  Ke4 {[%clk 0:01:25]} 44. b4 {[%clk 0:00:13]}  Bb6 {[%clk 0:01:22]} 45. b5 {[%clk 0:00:06]}  f6 {[%clk 0:01:22]} 46. Nb4 {[%clk 0:00:05]}  g5 {[%clk 0:01:20]} 47. Nc2 {[%clk 0:00:04]}  gxf4 {[%clk 0:01:18]} 48. Nxa3 {[%clk 0:00:04]}  f3+ {[%clk 0:01:18]} 49. Kf1 {[%clk 0:00:04]}  Kd3 {[%clk 0:01:16]} 50. Ke1 {[%clk 0:00:01]}  f2+ {[%clk 0:01:15]} 51. Kf1 {[%clk 0:00:01]}  c2 {[%clk 0:01:16]} 52. Nxc2 {[%clk 0:00:01]}  Kxc2 {[%clk 0:01:17]} 53. a4 {[%clk 0:00:01]}  Kb3 {[%clk 0:01:12]} 54. a5 {[%clk 0:00:01]}  Bxa5 {[%clk 0:01:12]} 55. Kxf2 {[%clk 0:00:02]}  Kb4 {[%clk 0:01:12]} 56. Ke3 {[%clk 0:00:02]}  Kxb5 {[%clk 0:01:12]} 57. Ke4 {[%clk 0:00:02]}  Kc4 {[%clk 0:01:11]} 58. Kf5 {[%clk 0:00:03]}  d5 {[%clk 0:01:11]} 59. Kxf6 {[%clk 0:00:04]}  d4 {[%clk 0:01:12]} 0-1


[Site "https://www.chess.com"]

[Event "Titled Tuesday Blitz November 01 Early 2022"]
[White "Caruana, Fabiano"]
[Black "Zakhartsov, Vladimir"]
[WhiteFideId "2020009"]
[BlackFideId "4145097"]
[WhiteElo "2847"]
[BlackElo "2492"]
[Result "1-0"]
[Round "11"]
[TimeControl "180+1"]
[Date "2022.11.01"]
[WhiteClock "0:00:49"]
[BlackClock "0:00:02"]

1. Nc3 {[%clk 0:03:00]}  d5 {[%clk 0:02:50]} 2. d4 {[%clk 0:03:00]}  Nf6 {[%clk 0:02:49]} 3. Bf4 {[%clk 0:02:57]}  a6 {[%clk 0:02:48]} 4. e3 {[%clk 0:02:55]}  b5 {[%clk 0:02:41]} 5. Bd3 {[%clk 0:02:51]}  e6 {[%clk 0:02:37]} 6. Nf3 {[%clk 0:02:50]}  Bb7 {[%clk 0:02:34]} 7. O-O {[%clk 0:02:44]}  c5 {[%clk 0:02:34]} 8. Ne5 {[%clk 0:02:44]}  Nbd7 {[%clk 0:02:31]} 9. Qf3 {[%clk 0:02:37]}  c4 {[%clk 0:02:18]} 10. Be2 {[%clk 0:02:37]}  b4 {[%clk 0:02:17]} 11. Na4 {[%clk 0:02:36]}  Nxe5 {[%clk 0:02:17]} 12. Bxe5 {[%clk 0:02:35]}  Ne4 {[%clk 0:02:07]} 13. Rfd1 {[%clk 0:02:35]}  Bc6 {[%clk 0:01:59]} 14. Nc5 {[%clk 0:02:31]}  Nxc5 {[%clk 0:01:29]} 15. dxc5 {[%clk 0:02:31]}  f6 {[%clk 0:01:26]} 16. Qh3 {[%clk 0:02:16]}  Kf7 {[%clk 0:01:17]} 17. Bg4 {[%clk 0:02:10]}  Qc8 {[%clk 0:00:50]} 18. e4 {[%clk 0:01:53]}  dxe4 {[%clk 0:00:39]} 19. Bd6 {[%clk 0:01:50]}  f5 {[%clk 0:00:36]} 20. Bh5+ {[%clk 0:01:49]}  g6 {[%clk 0:00:36]} 21. Be2 {[%clk 0:01:50]}  Bd5 {[%clk 0:00:35]} 22. a3 {[%clk 0:01:43]}  Bxd6 {[%clk 0:00:31]} 23. cxd6 {[%clk 0:01:44]}  a5 {[%clk 0:00:29]} 24. axb4 {[%clk 0:01:31]}  axb4 {[%clk 0:00:29]} 25. d7 {[%clk 0:01:31]}  Qxd7 {[%clk 0:00:14]} 26. Rxa8 {[%clk 0:01:30]}  Rxa8 {[%clk 0:00:15]} 27. Qxh7+ {[%clk 0:01:29]}  Ke8 {[%clk 0:00:15]} 28. Qg8+ {[%clk 0:01:20]}  Ke7 {[%clk 0:00:15]} 29. Qxg6 {[%clk 0:01:21]}  Qc7 {[%clk 0:00:10]} 30. h4 {[%clk 0:01:09]}  Qe5 {[%clk 0:00:07]} 31. Bxc4 {[%clk 0:01:06]}  e3 {[%clk 0:00:03]} 32. Qg5+ {[%clk 0:01:01]}  Qf6 {[%clk 0:00:02]} 33. Qxe3 {[%clk 0:01:00]}  Bxc4 {[%clk 0:00:01]} 34. Qc5+ {[%clk 0:01:00]}  Kf7 {[%clk 0:00:02]} 35. Qxc4 {[%clk 0:00:59]}  Qxb2 {[%clk 0:00:03]} 36. Qc7+ {[%clk 0:00:51]}  Kf6 {[%clk 0:00:03]} 37. Qh7 {[%clk 0:00:50]}  Qxc2 {[%clk 0:00:02]} 38. Qh6+ {[%clk 0:00:50]}  Kf7 {[%clk 0:00:01]} 39. Rd7+ {[%clk 0:00:49]}  Ke8 {[%clk 0:00:02]} 40. Qxe6+ {[%clk 0:00:49]} 1-0


[Site "https://www.chess.com"]

[Event "Titled Tuesday Blitz November 01 Early 2022"]
[White "Csonka, Balazs"]
[Black "Ristic, Nebojsa B"]
[WhiteFideId "742910"]
[BlackFideId "935468"]
[WhiteElo "2404"]
[BlackElo "2320"]
[Result "1-0"]
[Round "11"]
[TimeControl "180+1"]
[Date "2022.11.02"]
[WhiteClock "0:00:20"]
[BlackClock "0:01:07"]

1. e4 {[%clk 0:03:00]}  Nc6 {[%clk 0:02:59]} 2. Nf3 {[%clk 0:02:59]}  d6 {[%clk 0:02:59]} 3. d4 {[%clk 0:02:58]}  Nf6 {[%clk 0:03:00]} 4. Nc3 {[%clk 0:02:58]}  g6 {[%clk 0:03:01]} 5. Be3 {[%clk 0:02:56]}  Bg7 {[%clk 0:03:01]} 6. Qd2 {[%clk 0:02:56]}  O-O {[%clk 0:03:01]} 7. O-O-O {[%clk 0:02:55]}  a6 {[%clk 0:03:00]} 8. Bh6 {[%clk 0:02:42]}  b5 {[%clk 0:02:59]} 9. Bxg7 {[%clk 0:01:54]}  Kxg7 {[%clk 0:02:59]} 10. Qe3 {[%clk 0:01:45]}  b4 {[%clk 0:02:50]} 11. Nd5 {[%clk 0:01:36]}  e6 {[%clk 0:02:47]} 12. Nxf6 {[%clk 0:01:36]}  Qxf6 {[%clk 0:02:48]} 13. e5 {[%clk 0:01:31]}  Qe7 {[%clk 0:02:44]} 14. h4 {[%clk 0:01:28]}  h5 {[%clk 0:02:43]} 15. Bd3 {[%clk 0:01:14]}  d5 {[%clk 0:02:34]} 16. g4 {[%clk 0:01:02]}  Rh8 {[%clk 0:02:28]} 17. Rdg1 {[%clk 0:00:55]}  Bd7 {[%clk 0:02:26]} 18. Ng5 {[%clk 0:00:54]}  Na5 {[%clk 0:01:52]} 19. Qf3 {[%clk 0:00:35]}  c5 {[%clk 0:01:43]} 20. gxh5 {[%clk 0:00:30]}  Rxh5 {[%clk 0:01:42]} 21. Nxf7 {[%clk 0:00:28]}  Rf5 {[%clk 0:01:23]} 22. Bxf5 {[%clk 0:00:27]}  exf5 {[%clk 0:01:24]} 23. Rxg6+ {[%clk 0:00:20]}  Kxg6 {[%clk 0:01:22]} 24. Rg1+ {[%clk 0:00:19]}  Kxf7 {[%clk 0:01:15]} 25. Qh5+ {[%clk 0:00:20]}  Kf8 {[%clk 0:01:07]} 26. Qh8+ {[%clk 0:00:19]}  Kf7 {[%clk 0:01:08]} 27. Rg7+ {[%clk 0:00:19]}  Ke6 {[%clk 0:01:08]} 28. Qh6+ {[%clk 0:00:20]}  Qf6 {[%clk 0:01:07]} 29. Qxf6# {[%clk 0:00:20]} 1-0


[Site "https://www.chess.com"]

[Event "Titled Tuesday Blitz November 01 Early 2022"]
[White "Dominguez Perez, Leinier"]
[Black "Terry, Renato"]
[WhiteFideId "3503240"]
[BlackFideId "3803457"]
[WhiteElo "2647"]
[BlackElo "2577"]
[Result "0-1"]
[Round "11"]
[TimeControl "180+1"]
[Date "2022.11.01"]
[WhiteClock "0:00:02"]
[BlackClock "0:00:04"]

1. e4 {[%clk 0:03:00]}  e6 {[%clk 0:02:59]} 2. d4 {[%clk 0:03:00]}  d5 {[%clk 0:03:00]} 3. Nc3 {[%clk 0:03:01]}  Nf6 {[%clk 0:03:00]} 4. e5 {[%clk 0:03:01]}  Nfd7 {[%clk 0:03:01]} 5. f4 {[%clk 0:03:02]}  c5 {[%clk 0:03:01]} 6. Nf3 {[%clk 0:03:03]}  Nc6 {[%clk 0:03:02]} 7. Be3 {[%clk 0:03:03]}  Be7 {[%clk 0:03:03]} 8. Qd2 {[%clk 0:03:02]}  O-O {[%clk 0:03:03]} 9. dxc5 {[%clk 0:03:02]}  Qa5 {[%clk 0:03:03]} 10. O-O-O {[%clk 0:02:56]}  b6 {[%clk 0:03:01]} 11. Bb5 {[%clk 0:02:53]}  Nb4 {[%clk 0:02:59]} 12. a3 {[%clk 0:02:29]}  bxc5 {[%clk 0:02:59]} 13. Bxd7 {[%clk 0:02:15]}  Bxd7 {[%clk 0:03:00]} 14. axb4 {[%clk 0:02:16]}  cxb4 {[%clk 0:02:57]} 15. Nb1 {[%clk 0:02:15]}  Rfc8 {[%clk 0:02:38]} 16. Nd4 {[%clk 0:02:15]}  Qa2 {[%clk 0:02:37]} 17. Qd3 {[%clk 0:02:09]}  a5 {[%clk 0:02:31]} 18. f5 {[%clk 0:01:48]}  exf5 {[%clk 0:02:31]} 19. Nxf5 {[%clk 0:01:45]}  Bxf5 {[%clk 0:01:42]} 20. Qxf5 {[%clk 0:01:45]}  a4 {[%clk 0:01:43]} 21. Bd4 {[%clk 0:01:44]}  a3 {[%clk 0:01:39]} 22. Kd2 {[%clk 0:01:44]}  Qc4 {[%clk 0:01:33]} 23. Ke3 {[%clk 0:01:30]}  g6 {[%clk 0:01:19]} 24. Qg4 {[%clk 0:00:59]}  a2 {[%clk 0:00:55]} 25. Nd2 {[%clk 0:00:58]}  Qxc2 {[%clk 0:00:55]} 26. Ra1 {[%clk 0:00:44]}  h5 {[%clk 0:00:37]} 27. Qf4 {[%clk 0:00:41]}  Bc5 {[%clk 0:00:19]} 28. Bxc5 {[%clk 0:00:31]}  Rxc5 {[%clk 0:00:20]} 29. Qd4 {[%clk 0:00:31]}  Rc7 {[%clk 0:00:13]} 30. h4 {[%clk 0:00:22]}  b3 {[%clk 0:00:12]} 31. g4 {[%clk 0:00:20]}  Re7 {[%clk 0:00:07]} 32. gxh5 {[%clk 0:00:18]}  Rae8 {[%clk 0:00:06]} 33. Nf3 {[%clk 0:00:18]}  Rc7 {[%clk 0:00:03]} 34. Rh2 {[%clk 0:00:14]}  Qf5 {[%clk 0:00:02]} 35. Qf4 {[%clk 0:00:14]}  Qxf4+ {[%clk 0:00:01]} 36. Kxf4 {[%clk 0:00:14]}  gxh5 {[%clk 0:00:01]} 37. Rd2 {[%clk 0:00:10]}  Rc4+ {[%clk 0:00:01]} 38. Rd4 {[%clk 0:00:09]}  Rec8 {[%clk 0:00:01]} 39. Ke3 {[%clk 0:00:07]}  Rc1 {[%clk 0:00:01]} 40. Rd1 {[%clk 0:00:07]}  Rxd1 {[%clk 0:00:01]} 41. Rxd1 {[%clk 0:00:07]}  Rc2 {[%clk 0:00:02]} 42. Ra1 {[%clk 0:00:03]}  Rxb2 {[%clk 0:00:02]} 43. Nd2 {[%clk 0:00:03]}  Rxd2 {[%clk 0:00:03]} 44. Kxd2 {[%clk 0:00:02]}  b2 {[%clk 0:00:03]} 45. Rg1+ {[%clk 0:00:02]}  Kf8 {[%clk 0:00:03]} 46. e6 {[%clk 0:00:02]}  b1=Q {[%clk 0:00:04]} 0-1


[Site "https://www.chess.com"]

[Event "Titled Tuesday Blitz November 01 Early 2022"]
[White "Dubov, Daniil"]
[Black "Navara, David"]
[WhiteFideId "24126055"]
[BlackFideId "309095"]
[WhiteElo "2791"]
[BlackElo "2676"]
[Result "1-0"]
[Round "11"]
[TimeControl "180+1"]
[Date "2022.11.01"]
[WhiteClock "0:00:44"]
[BlackClock "0:00:01"]

1. e4 {[%clk 0:03:00]}  e5 {[%clk 0:03:00]} 2. Nf3 {[%clk 0:03:00]}  Nc6 {[%clk 0:03:00]} 3. Nc3 {[%clk 0:03:01]}  Nf6 {[%clk 0:03:00]} 4. d4 {[%clk 0:03:02]}  exd4 {[%clk 0:03:01]} 5. Nxd4 {[%clk 0:03:02]}  Bb4 {[%clk 0:03:01]} 6. Nxc6 {[%clk 0:03:03]}  bxc6 {[%clk 0:03:02]} 7. Bd3 {[%clk 0:03:03]}  d5 {[%clk 0:03:02]} 8. exd5 {[%clk 0:03:04]}  O-O {[%clk 0:03:02]} 9. O-O {[%clk 0:03:05]}  Bg4 {[%clk 0:03:02]} 10. Be2 {[%clk 0:03:05]}  Bxe2 {[%clk 0:02:59]} 11. Nxe2 {[%clk 0:03:06]}  cxd5 {[%clk 0:02:55]} 12. Nd4 {[%clk 0:03:05]}  Qd7 {[%clk 0:02:49]} 13. Qf3 {[%clk 0:03:04]}  Rfe8 {[%clk 0:02:29]} 14. h3 {[%clk 0:03:01]}  Ne4 {[%clk 0:02:16]} 15. Be3 {[%clk 0:02:55]}  c5 {[%clk 0:02:08]} 16. Nf5 {[%clk 0:02:52]}  Re5 {[%clk 0:02:08]} 17. Ng3 {[%clk 0:02:50]}  Nd2 {[%clk 0:01:47]} 18. Bxd2 {[%clk 0:02:46]}  Bxd2 {[%clk 0:01:48]} 19. Rad1 {[%clk 0:02:46]}  Ba5 {[%clk 0:01:34]} 20. c4 {[%clk 0:02:30]}  Rd8 {[%clk 0:01:34]} 21. cxd5 {[%clk 0:02:10]}  Rxd5 {[%clk 0:01:35]} 22. Rc1 {[%clk 0:02:09]}  Rd2 {[%clk 0:01:16]} 23. Ne4 {[%clk 0:01:58]}  Rxb2 {[%clk 0:01:16]} 24. Rxc5 {[%clk 0:01:43]}  Bb6 {[%clk 0:01:07]} 25. Rg5 {[%clk 0:01:42]}  Bd4 {[%clk 0:01:00]} 26. Nf6+ {[%clk 0:01:41]}  Bxf6 {[%clk 0:00:57]} 27. Qxf6 {[%clk 0:01:42]}  Qd4 {[%clk 0:00:56]} 28. Rxg7+ {[%clk 0:01:41]}  Kh8 {[%clk 0:00:55]} 29. Qxd4 {[%clk 0:01:39]}  Rxd4 {[%clk 0:00:48]} 30. Rxf7 {[%clk 0:01:40]}  Rxa2 {[%clk 0:00:48]} 31. Rb1 {[%clk 0:01:38]}  Rd8 {[%clk 0:00:47]} 32. Rbb7 {[%clk 0:01:36]}  a5 {[%clk 0:00:44]} 33. Rg7 {[%clk 0:01:36]}  a4 {[%clk 0:00:40]} 34. Rxh7+ {[%clk 0:01:36]}  Kg8 {[%clk 0:00:40]} 35. Rbg7+ {[%clk 0:01:35]}  Kf8 {[%clk 0:00:41]} 36. Ra7 {[%clk 0:01:36]}  Kg8 {[%clk 0:00:41]} 37. Rhg7+ {[%clk 0:01:21]}  Kh8 {[%clk 0:00:41]} 38. Rge7 {[%clk 0:01:20]}  a3 {[%clk 0:00:23]} 39. Re3 {[%clk 0:01:18]}  Rf8 {[%clk 0:00:20]} 40. Raxa3 {[%clk 0:01:07]}  Raxf2 {[%clk 0:00:20]} 41. Rf3 {[%clk 0:01:07]}  R8xf3 {[%clk 0:00:17]} 42. Rxf3 {[%clk 0:01:08]}  Rc2 {[%clk 0:00:17]} 43. Kh2 {[%clk 0:01:07]}  Kg7 {[%clk 0:00:18]} 44. h4 {[%clk 0:01:08]}  Kg6 {[%clk 0:00:17]} 45. Kh3 {[%clk 0:01:08]}  Rb2 {[%clk 0:00:17]} 46. g3 {[%clk 0:01:06]}  Ra2 {[%clk 0:00:16]} 47. Kg4 {[%clk 0:01:06]}  Ra4+ {[%clk 0:00:16]} 48. Rf4 {[%clk 0:01:07]}  Ra5 {[%clk 0:00:17]} 49. h5+ {[%clk 0:01:05]}  Kg7 {[%clk 0:00:15]} 50. Kh4 {[%clk 0:01:02]}  Rc5 {[%clk 0:00:12]} 51. g4 {[%clk 0:01:02]}  Kh6 {[%clk 0:00:12]} 52. g5+ {[%clk 0:00:59]}  Kg7 {[%clk 0:00:12]} 53. h6+ {[%clk 0:00:59]}  Kh7 {[%clk 0:00:07]} 54. Kh5 {[%clk 0:00:58]}  Kg8 {[%clk 0:00:05]} 55. Kg6 {[%clk 0:00:57]}  Rc6+ {[%clk 0:00:05]} 56. Rf6 {[%clk 0:00:57]}  Rc8 {[%clk 0:00:04]} 57. Re6 {[%clk 0:00:49]}  Kh8 {[%clk 0:00:03]} 58. Re5 {[%clk 0:00:46]}  Ra8 {[%clk 0:00:02]} 59. Kh5 {[%clk 0:00:46]}  Rb8 {[%clk 0:00:02]} 60. g6 {[%clk 0:00:46]}  Ra8 {[%clk 0:00:02]} 61. Kg5 {[%clk 0:00:46]}  Rb8 {[%clk 0:00:02]} 62. Rd5 {[%clk 0:00:45]}  Re8 {[%clk 0:00:01]} 63. Kf6 {[%clk 0:00:44]}  Ra8 {[%clk 0:00:01]} 64. Ke7 {[%clk 0:00:44]}  Rg8 {[%clk 0:00:01]} 65. Rd8 {[%clk 0:00:44]} 1-0


[Site "https://www.chess.com"]